bitfinex-derivatives/quotes_SOLF0:USTF0_20220104
["timestamp","ask_amount","ask_price","bid_price","bid_amount"]
[1641307381954,3.0,172.43,172.36,11.58516423]
[1641307382151,3.0,172.43,172.37,0.65412117]
[1641307382352,59.0273,172.43,172.37,0.65412117]
[1641307382552,3.0,172.42,172.37,0.65412117]
[1641307382953,62.0273,172.43,172.38,2.41652289]
[1641307383153,59.0273,172.43,172.38,2.41652289]
[1641307383353,59.0273,172.43,172.38,8.95452289]
[1641307383554,59.0273,172.43,172.39,0.65412117]
[1641307384153,62.0273,172.43,172.39,0.65412117]
[1641307384354,62.0273,172.43,172.4,2.41652289]
[1641307384553,3.0,172.41,172.4,2.41652289]
[1641307384753,30.66479,172.41,172.4,2.41652289]
[1641307384953,27.66479,172.41,172.4,2.41652289]
[1641307386056,59.0273,172.43,172.4,2.41652289]
[1641307386257,39.28479,172.44,172.4,7.53052289]
[1641307386457,3.0,172.43,172.4,7.53052289]
[1641307386857,39.28479,172.44,172.4,7.53052289]
[1641307387056,1.78235098,172.43,172.41,2.41652289]
[1641307387258,4.78235098,172.43,172.41,2.41652289]
[1641307387857,1.78235098,172.42,172.4,5.114]
[1641307388757,1.78235098,172.42,172.41,2.30600215]
[1641307389158,4.78235098,172.42,172.41,2.30600215]
[1641307390060,1.78235098,172.42,172.41,2.30600215]
[1641307391960,1.78235098,172.42,172.4,5.114]
[1641307392160,1.78235098,172.42,172.37,3.0]
[1641307392762,1.78235098,172.43,172.41,2.30609784]
[1641307392961,1.78235098,172.43,172.41,9.00909784]
[1641307393962,9.25934989,172.47,172.42,2.30609784]
[1641307395865,1.78235098,172.47,172.42,2.30609784]
[1641307396068,1.78235098,172.47,172.41,6.703]
[1641307398168,1.78235098,172.47,172.4,63.9642]
[1641307399368,1.78235098,172.47,172.41,2.30102818]
[1641307399568,1.78235098,172.47,172.41,7.58502818]
[1641307399971,1.78235098,172.47,172.42,2.30102818]
[1641307400172,1.78235098,172.47,172.42,2.95501523]
[1641307400571,1.78235098,172.47,172.43,0.65398705]
[1641307400772,67.1235,172.48,172.43,2.95501523]
[1641307401372,3.27000363,172.47,172.44,0.65398705]
[1641307401773,5.0499697,172.47,172.44,0.65398705]
[1641307402274,1.77996607,172.47,172.42,0.65398705]
[1641307402474,64.1235,172.48,172.42,0.65398705]
[1641307402475,1.78003987,172.46,172.42,0.65398705]
[1641307403075,9.2510998,172.47,172.42,0.65398705]
[1641307404676,1.78032524,172.47,172.42,0.65398705]
[1641307408086,3.27015507,172.46,172.42,0.65398705]
[1641307408488,3.27015507,172.46,172.41,0.65398705]
[1641307409186,1.78032524,172.45,172.41,0.65398705]
[1641307409889,12.25487241,172.46,172.41,4.73889747]
[1641307410092,12.25487241,172.46,172.41,9.78991042]
[1641307410490,12.25487241,172.46,172.42,0.65398705]
[1641307411490,14.03531068,172.47,172.42,4.73889747]
[1641307411890,3.27032058,172.46,172.43,0.65398705]
[1641307412392,15.52519299,172.46,172.43,0.65398705]
[1641307413092,12.25487241,172.46,172.43,0.65398705]
[1641307413291,12.25487241,172.46,172.42,0.65398705]
[1641307413492,1.78043827,172.45,172.42,0.65398705]
[1641307414294,12.25487241,172.46,172.42,0.65398705]
[1641307415095,12.25487241,172.45,172.42,0.65398705]
[1641307416097,14.03533163,172.47,172.42,4.73889747]
[1641307416797,14.03533163,172.47,172.43,0.65398705]
[1641307420503,14.03533163,172.47,172.43,4.73889747]
[1641307420702,1.78045922,172.47,172.43,4.73889747]
[1641307420902,1.78045922,172.47,172.44,0.65398705]
[1641307421903,76.37837241,172.48,172.44,0.65398705]
[1641307422605,1.77992903,172.47,172.44,0.65398705]
[1641307422805,5.04995283,172.47,172.44,0.65398705]
[1641307423206,1.77992903,172.47,172.44,0.65398705]
[1641307423406,76.37837241,172.48,172.44,0.65398705]
[1641307423607,1.77999171,172.46,172.44,0.65398705]
[1641307424208,14.03492344,172.47,172.44,0.65398705]
[1641307424907,14.03492344,172.47,172.43,0.65398705]
[1641307425408,12.25487241,172.46,172.43,0.65398705]
[1641307426008,14.0365654,172.47,172.43,0.65398705]
[1641307426509,3.27040409,172.46,172.43,0.65398705]
[1641307426809,12.25651437,172.45,172.43,0.65398705]
[1641307427210,12.25651437,172.45,172.42,0.65398705]
[1641307427512,14.0365654,172.45,172.42,0.65398705]
[1641307428611,9.25495484,172.47,172.42,0.65398705]
[1641307429112,3.27038935,172.46,172.42,0.65398705]
[1641307429913,12.26380151,172.45,172.42,0.65398705]
[1641307430614,12.26380151,172.44,172.42,0.65398705]
[1641307431417,9.25495484,172.47,172.41,0.65398705]
[1641307431616,9.25495484,172.47,172.41,5.12798705]
[1641307431816,3.2704712,172.46,172.41,5.12798705]
[1641307432116,12.26418188,172.44,172.41,5.12798705]
[1641307432316,12.26418188,172.44,172.42,0.65398705]
[1641307432616,1.78170284,172.45,172.42,0.65398705]
[1641307433719,9.25495484,172.47,172.42,0.65398705]
[1641307434016,12.26407836,172.44,172.41,0.65398705]
[1641307434218,15.26407836,172.44,172.41,0.65398705]
[1641307434416,4.78170284,172.45,172.41,0.65398705]
[1641307434616,1.78170284,172.45,172.41,0.65398705]
[1641307435018,27.66479,172.43,172.41,0.65398705]
[1641307436418,1.78170284,172.42,172.41,0.65398705]
[1641307437018,39.929423,172.43,172.41,0.65398705]
[1641307437219,3.27090451,172.42,172.4,0.65398705]
[1641307437618,3.27090451,172.42,172.39,0.65398705]
[1641307438219,5.05356339,172.42,172.39,0.65398705]
[1641307438618,1.78265888,172.42,172.39,0.65398705]
[1641307441023,27.66479,172.4,172.39,0.65398705]
[1641307441623,27.66479,172.4,172.38,0.65398705]
[1641307441824,29.44744888,172.4,172.38,4.73889747]
[1641307442224,29.44744888,172.4,172.39,0.65398705]
[1641307442426,29.44744888,172.4,172.39,6.77498705]
[1641307442626,27.66479,172.4,172.39,6.77498705]
[1641307448831,38.41742789,172.4,172.39,6.77498705]
[1641307449134,35.14618967,172.4,172.39,6.77498705]
[1641307449531,39.93185902,172.4,172.39,6.77498705]
[1641307449731,48.71185902,172.4,172.39,6.77498705]
[1641307451736,51.71185902,172.4,172.39,6.77498705]
[1641307452735,48.71185902,172.4,172.39,6.77498705]
[1641307456148,36.44479,172.4,172.39,6.77498705]
[1641307457148,48.71174832,172.4,172.39,6.77498705]
[1641307457950,38.22792376,172.4,172.39,6.77498705]
[1641307458549,48.71168219,172.4,172.39,6.77498705]
[1641307459554,38.22779371,172.4,172.39,6.77498705]
[1641307460453,36.44479,172.4,172.39,6.77498705]
[1641307461454,38.2278299,172.4,172.39,6.77498705]
[1641307461953,48.71153283,172.4,172.39,6.77498705]
[1641307462957,36.44479,172.4,172.39,6.77498705]
[1641307463157,38.22790821,172.4,172.39,6.77498705]
[1641307463358,44.11090821,172.4,172.36,4.08491042]
[1641307463557,1.78316887,172.39,172.34,2.30588304]
[1641307464557,39.44479,172.4,172.34,2.30588304]
[1641307464759,39.44479,172.4,172.35,0.65426512]
[1641307465359,27.66479,172.37,172.36,2.30588304]
[1641307466059,1.82000045,172.39,172.36,2.96014816]
[1641307466360,1.82000045,172.39,172.37,0.65426512]
[1641307467161,48.71220539,172.4,172.37,0.65426512]
[1641307467563,12.26741539,172.39,172.37,7.00826512]
[1641307468261,12.26741539,172.39,172.38,0.65426512]
[1641307469162,36.44479,172.4,172.38,0.65426512]
[1641307470062,12.26772313,172.39,172.38,0.65426512]
[1641307470563,12.26772313,172.39,172.34,0.65426512]
[1641307470764,36.44479,172.4,172.34,0.65426512]
[1641307470964,36.44479,172.4,172.34,5.28426512]
[1641307471466,36.44479,172.4,172.35,0.65426512]
[1641307471865,12.26766085,172.39,172.35,2.92338677]
[1641307472265,12.26766085,172.39,172.36,0.65426512]
[1641307472468,12.26766085,172.39,172.36,3.65426512]
[1641307472666,32.68629038,172.43,172.36,3.65426512]
[1641307472866,32.68629038,172.43,172.36,0.65426512]
[1641307473066,32.68629038,172.43,172.39,3.0]
[1641307473266,32.68629038,172.43,172.39,7.138]
[1641307473467,32.68629038,172.43,172.4,0.65426512]
[1641307473967,12.26661201,172.41,172.4,0.65426512]
[1641307474870,12.26511264,172.43,172.4,0.65426512]
[1641307475568,12.26511264,172.43,172.38,4.137]
[1641307475770,101.34539,172.45,172.38,4.137]
[1641307475969,12.26571665,172.42,172.38,4.137]
[1641307476169,12.26571665,172.42,172.39,0.65426512]
[1641307476770,101.34539,172.45,172.39,0.65426512]
[1641307476970,7.57839138,172.44,172.39,0.65426512]
[1641307477372,3.271137,172.43,172.39,0.65426512]
[1641307477773,12.26668619,172.41,172.39,0.65426512]
[1641307478974,12.26668619,172.4,172.39,0.65426512]
[1641307479776,12.26559168,172.42,172.39,0.65426512]
[1641307480777,7.57839138,172.44,172.39,0.65426512]
[1641307480977,12.26509005,172.43,172.39,0.65426512]
[1641307481179,15.53587641,172.43,172.39,0.65426512]
[1641307481579,12.26509005,172.42,172.39,0.65426512]
[1641307482580,9.39764609,172.44,172.39,0.65426512]
[1641307483578,12.2655239,172.42,172.39,0.65426512]
[1641307484381,9.39764609,172.44,172.39,0.65426512]
[1641307484580,12.26535437,172.43,172.39,0.65426512]
[1641307485282,12.26535437,172.43,172.39,3.65426512]
[1641307485482,12.26535437,172.43,172.41,27.66479]
[1641307486084,12.26535437,172.43,172.42,0.65426512]
[1641307486282,12.26535437,172.43,172.42,6.59526512]
[1641307486882,12.26454739,172.44,172.42,6.59526512]
[1641307487083,7.57573031,172.47,172.42,6.59526512]
[1641307487383,7.57573031,172.47,172.46,27.66479]
[1641307487584,7.57573031,172.47,172.46,36.69679]
[1641307487988,7.57573031,172.47,172.46,37.35105512]
[1641307488386,32.68629038,172.48,172.46,37.35105512]
[1641307488586,32.68629038,172.54,172.46,37.35105512]
[1641307488786,32.68629038,172.54,172.47,0.65426512]
[1641307489286,3.26955964,172.53,172.47,0.65426512]
[1641307489484,3.26955964,172.53,172.5,27.66479]
[1641307489686,3.26955964,172.53,172.5,32.26479]
[1641307490186,3.26955964,172.53,172.5,4.6]
[1641307490493,3.26955964,172.53,172.51,0.65426512]
[1641307492190,3.26955964,172.53,172.5,0.65426512]
[1641307495497,3.26955964,172.53,172.47,0.65426512]
[1641307495896,3.26955964,172.53,172.45,0.65426512]
[1641307496598,10.84528995,172.53,172.45,0.65426512]
[1641307497196,3.26955964,172.52,172.45,0.65426512]
[1641307510009,3.26955964,172.52,172.5,3.0]
[1641307510211,3.26955964,172.52,172.5,8.16]
[1641307510411,3.26955964,172.52,172.51,0.65426512]
[1641307511312,3.26955964,172.53,172.51,0.65426512]
[1641307511711,3.26955964,172.53,172.45,62.3584]
[1641307511911,55.32958,172.54,172.41,63.35108038]
[1641307512111,55.32958,172.54,172.43,3.0]
[1641307512314,55.32958,172.54,172.43,7.971]
[1641307512711,55.32958,172.54,172.44,3.0]
[1641307513011,6.83892181,172.53,172.44,3.0]
[1641307513411,3.26969938,172.52,172.44,3.0]
[1641307513611,3.26969938,172.52,172.45,27.66479]
[1641307514211,3.26969938,172.52,172.45,32.31379]
[1641307514612,3.26969938,172.52,172.45,35.31379]
[1641307514813,3.26969938,172.52,172.45,32.31379]
[1641307515014,3.26969938,172.52,172.45,35.31379]
[1641307517218,12.26269557,172.51,172.45,32.31379]
[1641307517818,3.26969938,172.5,172.45,32.31379]
[1641307518820,15.53239495,172.51,172.45,32.31379]
[1641307519121,12.26269557,172.51,172.45,32.31379]
[1641307519619,12.26269557,172.52,172.45,32.31379]
[1641307519819,12.26269557,172.52,172.45,35.31379]
[1641307520219,3.26989319,172.51,172.45,32.31379]
[1641307520420,15.53258876,172.51,172.45,32.31379]
[1641307521022,12.26269557,172.51,172.45,32.31379]
[1641307521223,12.26269557,172.53,172.45,44.57648557]
[1641307521626,12.26269557,172.53,172.5,27.66479]
[1641307521823,12.26269557,172.53,172.5,32.64179]
[1641307522021,12.26269557,172.54,172.5,32.64179]
[1641307522420,9.557e-05,172.54,172.5,35.64179]
[1641307522620,9.557e-05,172.54,172.51,3.0]
[1641307522820,32.68629038,172.57,172.5,32.64179]
[1641307523029,6.83406137,172.59,172.5,32.64179]
[1641307523421,3.26923143,172.56,172.5,32.64179]
[1641307523821,30.93402143,172.58,172.5,4.977]
[1641307524021,30.93402143,172.58,172.46,57.0072]
[1641307524221,3.26923143,172.57,172.46,57.0072]
[1641307524422,3.26923143,172.57,172.47,3.0]
[1641307524622,3.26923143,172.57,172.52,4.08668588]
[1641307524821,3.26923143,172.57,172.52,10.16668588]
[1641307525023,3.26923143,172.57,172.52,6.08008588]
[1641307525221,13.1032928,172.57,172.52,6.08]
[1641307525422,10.1032928,172.57,172.52,6.08]
[1641307525721,27.66479,172.54,172.52,6.08]
[1641307526422,3.26923143,172.53,172.52,6.08]
[1641307526823,3.26923143,172.53,172.52,6.7339464]
[1641307527227,27.66479,172.54,172.52,6.7339464]
[1641307527422,32.68629038,172.56,172.52,6.7339464]
[1641307527623,32.68629038,172.56,172.53,28.3187364]
[1641307527824,32.68629038,172.56,172.53,0.6539464]
[1641307528023,3.26930769,172.55,172.54,0.6539464]
[1641307528623,3.26930769,172.56,172.53,0.6539464]
[1641307529225,1.57802991,172.55,172.53,0.6539464]
[1641307530827,8.41209128,172.59,172.54,2.6188573]
[1641307531428,3.26910094,172.58,172.55,0.6539464]
[1641307532229,3.26910094,172.58,172.53,0.6539464]
[1641307532627,1.57802991,172.57,172.53,0.6539464]
[1641307533428,1.57802991,172.56,172.54,2.61892585]
[1641307533632,4.84718581,172.56,172.54,2.61892585]
[1641307533829,4.84718581,172.56,172.54,30.28371585]
[1641307534028,3.2691559,172.56,172.54,2.61892585]
[1641307534229,60.9855,172.6,172.55,0.6539464]
[1641307534831,3.2689958,172.59,172.55,0.6539464]
[1641307535029,11.37352645,172.59,172.55,0.6539464]
[1641307535230,11.37352645,172.59,172.53,0.6539464]
[1641307535630,4.73636827,172.58,172.54,2.61887677]
[1641307536232,4.73636827,172.57,172.55,0.6539464]
[1641307536632,3.2689958,172.56,172.55,0.6539464]
[1641307537832,4.73636827,172.56,172.55,0.6539464]
[1641307538232,1.46737247,172.56,172.55,0.6539464]
[1641307538432,1.46737247,172.56,172.53,0.6539464]
[1641307539233,8.10453065,172.59,172.54,2.61889927]
[1641307539633,3.2690871,172.58,172.55,0.6539464]
[1641307540035,3.2690871,172.58,172.55,6.6539464]
[1641307540435,8.10453065,172.59,172.56,0.6539464]
[1641307540637,8.10453065,172.59,172.56,6.2089464]
[1641307541037,8.58,172.64,172.57,0.6539464]
[1641307541437,3.26843748,172.63,172.57,0.6539464]
[1641307542336,1.46659324,172.62,172.57,0.6539464]
[1641307542738,3.26843748,172.61,172.57,0.6539464]
[1641307543737,27.66479,172.6,172.56,0.6539464]
[1641307544138,3.26843748,172.59,172.56,0.6539464]
[1641307545344,1.46659324,172.58,172.56,0.6539464]
[1641307546946,8.10239998,172.61,172.56,0.6539464]
[1641307547145,8.10239998,172.61,172.56,5.1979464]
[1641307547445,3.26848438,172.6,172.56,5.1979464]
[1641307547745,3.26848438,172.6,172.57,3.27296581]
[1641307548149,3.26848438,172.6,172.58,0.6539464]
[1641307548647,1.46659324,172.59,172.58,0.6539464]
[1641307549047,1.46659324,172.59,172.57,0.6539464]
[1641307549849,1.46659324,172.59,172.58,27.66479]
[1641307550049,1.46659324,172.59,172.58,30.28385247]
[1641307550451,1.46659324,172.59,172.58,30.93779887]
[1641307550649,1.46659324,172.63,172.58,3.27300887]
[1641307551254,3.26809196,172.62,172.59,0.6539464]
[1641307551651,3.26809196,172.62,172.57,0.6539464]
[1641307551854,3.26809196,172.62,172.59,27.66479]
[1641307552055,1.46659324,172.61,172.59,27.66479]
[1641307552254,1.46659324,172.61,172.59,30.66479]
[1641307552455,1.46659324,172.61,172.6,0.6539464]
[1641307552656,1.46659324,172.61,172.6,7.3239464]
[1641307552856,1.46659324,172.61,172.6,9.94311703]
[1641307553556,13.72089954,172.64,172.6,9.94311703]
[1641307554159,3.26785734,172.63,172.61,0.6539464]
[1641307555059,1.46659324,172.62,172.61,0.6539464]
[1641307555259,1.46659324,172.62,172.6,0.6539464]
[1641307555662,1.46659324,172.62,172.58,3.6539464]
[1641307555857,1.46659324,172.62,172.58,0.6539464]
[1641307556258,13.72089954,172.64,172.59,3.27311308]
[1641307556458,13.72089954,172.64,172.59,7.85611308]
[1641307556659,3.26795733,172.63,172.6,0.6539464]
[1641307557260,15.52226363,172.63,172.6,0.6539464]
[1641307557659,15.52226363,172.63,172.57,90.64829]
[1641307557660,15.52226363,172.63,172.58,0.6539464]
[1641307557860,1.46659324,172.62,172.58,0.6539464]
[1641307558062,4.73455057,172.62,172.58,0.6539464]
[1641307558464,3.26795733,172.61,172.58,0.6539464]
[1641307558763,4.73455057,172.61,172.59,2.61910507]
[1641307559263,12.2543063,172.63,172.59,2.61910507]
[1641307559264,1.46659324,172.6,172.59,2.61910507]
[1641307559966,6.6326738,172.64,172.57,27.66479]
[1641307559967,1.46659324,172.64,172.57,27.66479]
[1641307560165,1.46659324,172.64,172.57,34.45979]
[1641307560567,3.26814475,172.63,172.57,34.45979]
[1641307562067,63.2481,172.65,172.57,34.45979]
[1641307562068,3.26814475,172.64,172.57,34.45979]
[1641307562268,1.46590884,172.62,172.58,2.61911884]
[1641307562868,3.26814475,172.61,172.58,2.61911884]
[1641307563469,3.26814475,172.61,172.58,5.61911884]
[1641307563669,1.46590884,172.6,172.58,5.61911884]
[1641307563870,32.68629038,172.67,172.59,30.66479]
[1641307564069,64.0804,172.75,172.62,3.0]
[1641307564268,64.0804,172.75,172.66,3.0]
[1641307564470,64.0804,172.75,172.66,9.676]
[1641307564669,64.0804,172.75,172.67,3.0]
[1641307565069,3.26651313,172.74,172.7,3.0]
[1641307565269,3.26651313,172.74,172.7,5.477]
[1641307565871,27.66479,172.71,172.61,17.02325002]
[1641307566072,63.7232,172.7,172.61,17.02325002]
[1641307566368,3.26651313,172.69,172.64,3.0]
[1641307566570,3.26651313,172.69,172.64,8.904]
[1641307566771,3.26651313,172.69,172.64,5.904]
[1641307566971,3.26651313,172.69,172.64,8.904]
[1641307567373,3.26651313,172.7,172.64,8.904]
[1641307567573,3.26651313,172.7,172.64,5.904]
[1641307567773,27.66479,172.71,172.65,3.0]
[1641307567973,27.66479,172.71,172.66,3.0]
[1641307568575,27.66479,172.71,172.65,3.0]
[1641307568776,27.66479,172.71,172.64,5.904]
[1641307568974,27.66479,172.71,172.64,8.904]
[1641307569174,27.66479,172.71,172.64,5.904]
[1641307569374,32.04179,172.71,172.6,62.1487]
[1641307569575,3.26677538,172.7,172.56,52.08740495]
[1641307569775,27.66479,172.61,172.56,49.08740495]
[1641307569976,27.35379,172.61,172.56,49.08740495]
[1641307570375,5.689,172.61,172.56,49.08740495]
[1641307570575,5.689,172.61,172.53,62.4167]
[1641307570775,5.689,172.61,172.52,27.66479]
[1641307570976,5.689,172.61,172.55,3.0]
[1641307571175,60.4333,172.63,172.55,3.0]
[1641307571474,60.4333,172.63,172.52,33.97479]
[1641307571676,60.4333,172.63,172.55,3.0]
[1641307571875,60.4333,172.63,172.57,27.66479]
[1641307572075,27.66479,172.66,172.57,32.05679]
[1641307572476,21.12945575,172.66,172.57,32.05679]
[1641307572677,3.26744507,172.65,172.57,32.05679]
[1641307573280,3.26744507,172.65,172.57,35.05679]
[1641307573681,3.26744507,172.65,172.58,3.0]
[1641307573881,3.26744507,172.65,172.61,30.66479]
[1641307574082,3.26744507,172.68,172.61,32.91179]
[1641307574482,3.26744507,172.71,172.62,0.65340196]
[1641307574982,6.26744507,172.71,172.62,0.65340196]
[1641307575384,3.0,172.69,172.62,0.65340196]
[1641307575782,3.0,172.69,172.62,6.65340196]
[1641307575983,30.66479,172.69,172.62,6.65340196]
[1641307576184,3.26744507,172.68,172.63,0.65340196]
[1641307585595,3.26744507,172.68,172.67,4.08447241]
[1641307586199,3.26744507,172.68,172.64,4.08447241]
[1641307586596,3.26744507,172.68,172.65,0.65340196]
[1641307587898,3.26744507,172.68,172.66,4.08447241]
[1641307588297,3.26744507,172.68,172.67,0.65340196]
[1641307588699,3.26744507,172.71,172.67,0.65340196]
[1641307589898,3.26744507,172.71,172.66,0.65340196]
[1641307590099,3.26744507,172.71,172.68,4.08447241]
[1641307590299,3.26744507,172.71,172.68,9.67947241]
[1641307590897,3.26744507,172.71,172.69,0.65340196]
[1641307592000,3.26744507,172.71,172.69,4.73787437]
[1641307592600,3.0,172.7,172.69,4.08447241]
[1641307592800,6.26744507,172.71,172.68,4.08447241]
[1641307593000,6.26744507,172.7,172.68,4.08447241]
[1641307593201,3.26744507,172.7,172.64,10.77582044]
[1641307593401,3.26744507,172.69,172.64,10.77582044]
[1641307593601,6.26744507,172.69,172.64,10.77582044]
[1641307593803,6.26744507,172.69,172.65,0.65350532]
[1641307594404,3.26744507,172.68,172.65,0.65350532]
[1641307594801,3.0,172.67,172.65,0.65350532]
[1641307595003,3.0,172.66,172.64,0.65350532]
[1641307595203,6.067,172.66,172.64,0.65350532]
[1641307595501,3.26744507,172.65,172.64,0.65350532]
[1641307596502,3.26744507,172.66,172.64,0.65350532]
[1641307596702,3.26744507,172.65,172.64,0.65350532]
[1641307597104,3.26744507,172.66,172.63,0.65350532]
[1641307597303,3.26744507,172.66,172.63,4.95850532]
[1641307598105,3.26744507,172.68,172.64,0.65350532]
[1641307598706,3.26744507,172.68,172.64,6.63150532]
[1641307598907,3.26744507,172.68,172.64,5.978]
[1641307599109,3.0,172.65,172.64,3.658]
[1641307599407,3.0,172.65,172.57,32.67482675]
[1641307599607,6.703,172.65,172.58,25.69482675]
[1641307599806,3.0,172.64,172.58,25.69482675]
[1641307600008,3.0,172.63,172.58,25.69482675]
[1641307600409,27.66479,172.59,172.58,25.69482675]
[1641307600610,27.66479,172.62,172.58,25.69482675]
[1641307600808,27.66479,172.62,172.58,26.34854986]
[1641307601011,27.66479,172.62,172.58,0.65372311]
[1641307601210,3.26849552,172.61,172.59,0.65372311]
[1641307601608,3.26849552,172.61,172.54,0.65372311]
[1641307602410,3.26849552,172.61,172.54,28.31851311]
[1641307602811,27.66479,172.62,172.54,28.31851311]
[1641307603010,27.66479,172.62,172.54,34.47751311]
[1641307603211,27.66479,172.62,172.55,0.65372311]
[1641307604412,27.66479,172.62,172.56,2.97906529]
[1641307605011,27.66479,172.62,172.57,0.65372311]
[1641307605213,59.1592,172.65,172.57,0.65372311]
[1641307605411,59.1592,172.65,172.57,5.61172311]
[1641307606011,3.26819085,172.64,172.58,0.65372311]
[1641307606512,3.26819085,172.64,172.58,3.6327884]
[1641307607015,3.26819085,172.64,172.57,4.958]
[1641307607016,3.26819085,172.64,172.59,3.6327884]
[1641307607412,3.26819085,172.64,172.6,0.65372311]
[1641307607612,3.26819085,172.64,172.6,3.6327884]
[1641307608212,71.2126,172.68,172.61,0.65372311]
[1641307608413,71.2126,172.68,172.61,9.2637884]
[1641307608613,3.26763494,172.67,172.61,9.2637884]
[1641307609113,4.64166593,172.67,172.62,3.6327884]
[1641307609515,3.26763494,172.66,172.63,0.65372311]
[1641307609714,4.64166593,172.66,172.63,3.6327884]
[1641307610115,1.37403099,172.65,172.64,2.97906529]
[1641307610516,4.64166593,172.65,172.64,3.6327884]
[1641307610918,4.64166593,172.65,172.64,0.65372311]
[1641307611418,4.64166593,172.65,172.6,0.65372311]
[1641307611820,1.37403099,172.65,172.61,3.0]
[1641307612023,67.4383,172.75,172.61,4.493]
[1641307612321,64.4383,172.75,172.62,0.65372311]
[1641307612522,27.66479,172.74,172.65,27.66479]
[1641307612721,3.26710978,172.72,172.65,32.82079]
[1641307613123,3.26710978,172.72,172.66,0.65372311]
[1641307616223,3.26710978,172.72,172.64,0.65372311]
[1641307617025,6.26710978,172.72,172.64,0.65372311]
[1641307617226,3.26710978,172.72,172.64,0.65372311]
[1641307619224,60.422,172.71,172.64,0.65372311]
[1641307619425,3.26710978,172.72,172.64,0.65372311]
[1641307619625,3.26710978,172.7,172.64,6.10772311]
[1641307620128,3.26710978,172.72,172.65,0.65372311]
[1641307620526,3.26710978,172.72,172.64,0.65372311]
[1641307620727,3.26710978,172.72,172.64,10.63343582]
[1641307621128,3.26710978,172.72,172.65,0.65372311]
[1641307621428,3.26710978,172.72,172.65,6.62172311]
[1641307622031,3.26710978,172.72,172.66,0.65372311]
[1641307622830,3.26710978,172.72,172.67,27.66479]
[1641307623231,3.26710978,172.72,172.68,0.65372311]
[1641307623831,3.26710978,172.75,172.68,0.65372311]
[1641307624233,3.26710978,172.76,172.68,0.65372311]
[1641307624432,9.61986457,172.76,172.68,0.65372311]
[1641307625133,3.26710978,172.75,172.68,0.65372311]
[1641307629337,3.26710978,172.75,172.7,3.0]
[1641307629537,3.26710978,172.75,172.71,3.0]
[1641307629737,32.66788559,172.8,172.71,0.65372311]
[1641307630138,3.265745,172.79,172.71,12.89999415]
[1641307630340,15.51201604,172.79,172.75,3.0]
[1641307630539,15.51201604,172.79,172.75,5.842]
[1641307630937,12.24627104,172.79,172.76,0.65372311]
[1641307631837,27.66479,172.82,172.76,0.65372311]
[1641307632236,3.26508186,172.81,172.76,0.65372311]
[1641307633039,12.24627104,172.83,172.76,0.65372311]
[1641307633739,15.24627104,172.83,172.76,0.65372311]
[1641307633941,12.24627104,172.83,172.76,0.65372311]
[1641307634140,3.26534556,172.82,172.76,0.65372311]
[1641307634544,12.24627104,172.8,172.76,0.65372311]
[1641307635141,3.26534556,172.79,172.76,0.65372311]
[1641307636342,12.24627104,172.81,172.76,0.65372311]
[1641307636543,12.24627104,172.81,172.76,6.31472311]
[1641307636742,3.26529307,172.8,172.76,6.31472311]
[1641307637042,3.26529307,172.8,172.77,0.65372311]
[1641307637543,3.26529307,172.81,172.77,0.65372311]
[1641307638343,3.26529307,172.81,172.77,7.19072311]
[1641307638544,3.26529307,172.81,172.77,6.537]
[1641307638944,3.26529307,172.81,172.78,0.65372311]
[1641307640243,15.51156411,172.81,172.78,0.65372311]
[1641307640945,3.26529307,172.8,172.76,0.65372311]
[1641307641147,3.26529307,172.8,172.79,0.65372311]
[1641307641946,3.26529307,172.8,172.76,0.65372311]
[1641307644450,15.51156411,172.8,172.76,0.65372311]
[1641307644851,3.26529307,172.79,172.76,0.65372311]
[1641307646152,15.51156411,172.79,172.76,0.65372311]
[1641307646752,3.26529307,172.78,172.76,0.65372311]
[1641307647151,3.26529307,172.79,172.76,0.65372311]
[1641307647351,15.51156411,172.79,172.76,0.65372311]
[1641307647551,3.0,172.78,172.74,4.385]
[1641307647952,3.26529307,172.77,172.75,0.65372311]
[1641307648853,3.26529307,172.77,172.73,0.65372311]
[1641307650753,12.24627104,172.79,172.73,0.65372311]
[1641307651154,12.24627104,172.8,172.73,0.65372311]
[1641307651855,3.26544551,172.79,172.73,0.65372311]
[1641307652654,1.41843708,172.78,172.74,2.66318474]
[1641307653055,1.41843708,172.78,172.75,0.65372311]
[1641307653255,1.41843708,172.78,172.75,5.05072311]
[1641307653457,1.41843708,172.78,172.77,4.08155371]
[1641307653855,13.66470812,172.81,172.77,4.73527682]
[1641307654255,3.26525885,172.8,172.78,0.65372311]
[1641307655558,1.41843708,172.79,172.78,0.65372311]
[1641307656160,4.68369593,172.79,172.77,0.65372311]
[1641307656461,1.41843708,172.79,172.77,0.65372311]